bitfinex/quotes_BTCUSD_20260127
["timestamp","ask_amount","ask_price","bid_price","bid_amount"]
[1769529101321,0.62973525,87935.0,87918.0,0.02489164]
[1769529101526,0.00013978,87935.0,87919.0,0.02489164]
[1769529103332,0.00013978,87935.0,87920.0,0.67290723]
[1769529103626,0.00013978,87935.0,87924.0,0.67290723]
[1769529103853,0.00013978,87935.0,87925.0,0.02489164]
[1769529104649,0.00013978,87935.0,87918.0,0.67290723]
[1769529104881,0.00013978,87935.0,87920.0,0.02489164]
[1769529105096,0.00013978,87935.0,87921.0,0.02489164]
[1769529105752,0.00013978,87935.0,87923.0,0.02489164]
[1769529105984,0.0003752,87960.0,87932.0,0.67290723]
[1769529106161,0.0003752,87960.0,87948.0,0.02489164]
[1769529106703,0.0003752,87960.0,87949.0,0.67290723]
[1769529107068,0.0003752,87960.0,87951.0,0.02489164]
[1769529108838,0.0003752,87960.0,87953.0,0.02489164]
[1769529109043,0.0003752,87960.0,87956.0,0.67290723]
[1769529109362,0.0003752,87960.0,87957.0,0.02489164]
[1769529109743,0.0003752,87960.0,87950.0,0.33986621]
[1769529109744,0.0003752,87960.0,87951.0,0.02489164]
[1769529110079,0.0003752,87960.0,87952.0,0.69779887]
[1769529110447,0.0003752,87960.0,87953.0,0.69779887]
[1769529110994,0.0003752,87960.0,87953.0,0.02489164]
[1769529112013,0.0003752,87960.0,87954.0,0.67290723]
[1769529112899,0.01,87954.0,87946.0,0.67290723]
[1769529113124,0.0003752,87960.0,87945.0,0.67290723]
[1769529113272,0.0003752,87960.0,87948.0,0.02489164]
[1769529113508,0.0003752,87960.0,87949.0,0.67290723]
[1769529113710,0.0003752,87960.0,87949.0,0.69779887]
[1769529113900,0.0003752,87960.0,87950.0,0.69779887]
[1769529114706,0.0003752,87960.0,87943.0,0.63140897]
[1769529114900,0.0003752,87960.0,87945.0,0.63140897]
[1769529115022,0.0003752,87960.0,87946.0,0.63140897]
[1769529115239,0.63017201,87959.0,87932.0,0.02386879]
[1769529115455,0.63017201,87959.0,87927.0,0.0568653]
[1769529115456,0.63017201,87957.0,87937.0,0.11684]
[1769529115650,0.0003752,87960.0,87940.0,0.97127518]
[1769529115993,0.02494324,87967.0,87937.0,0.11697978]
[1769529115994,0.63017201,87976.0,87952.0,0.63140897]
[1769529116203,0.63017201,87976.0,87956.0,0.63140897]
[1769529116558,0.63017201,87976.0,87950.0,0.33986621]
[1769529116559,0.63017201,87976.0,87958.0,0.65527776]
[1769529117535,0.65511525,87976.0,87958.0,0.65527776]
[1769529117893,0.02737523,87979.0,87960.0,0.63140897]
[1769529118094,0.02737523,87979.0,87961.0,0.65527776]
[1769529118297,0.63054346,87976.0,87942.0,0.02386879]
[1769529118523,0.63054346,87976.0,87940.0,0.33986621]
[1769529118524,0.02494324,87973.0,87945.0,0.63140897]
[1769529118722,0.68738148,87970.0,87949.0,0.63140897]
[1769529118936,0.63054346,87964.0,87942.0,0.63140897]
[1769529119132,0.6554867,87964.0,87944.0,0.65527776]
[1769529119351,0.6554867,87963.0,87944.0,0.65527776]
[1769529119551,0.02494324,87960.0,87944.0,0.65527776]
[1769529119770,0.63054346,87957.0,87937.0,0.00013978]
[1769529119964,0.63054346,87957.0,87940.0,0.63140897]
[1769529120128,0.08178436,87965.0,87943.0,0.02386879]
[1769529120336,0.02737523,87963.0,87945.0,0.65527776]
[1769529120575,0.45459469,87991.0,87951.0,0.63140897]
[1769529120576,0.08369845,87990.0,87951.0,0.63140897]
[1769529120750,0.08369845,87990.0,87937.0,0.00013978]
[1769529120751,0.02737523,87973.0,87955.0,0.63140897]
[1769529120932,0.02737523,87973.0,87955.0,0.65527776]
[1769529121370,0.65791869,87973.0,87955.0,0.65527776]
[1769529121582,0.68286193,87973.0,87955.0,0.65511894]
[1769529123480,0.65564393,87972.0,87955.0,0.65511894]
[1769529124002,0.65564393,87972.0,87940.0,0.33986621]
[1769529124003,0.02494324,87953.0,87922.0,0.02386879]
[1769529124208,0.02494324,87953.0,87910.0,0.11684]
[1769529124209,0.42836493,87951.0,87923.0,0.02386879]
[1769529124345,0.02494324,87944.0,87924.0,0.65527776]
[1769529124791,0.02446345,87944.0,87924.0,0.65527776]
[1769529125171,0.42788514,87944.0,87924.0,0.65527776]
[1769529125501,0.02494324,87943.0,87924.0,0.65527776]
[1769529126465,0.09039607,87972.0,87924.0,0.65527776]
[1769529126466,0.33986621,87980.0,87924.0,0.63140897]
[1769529126684,0.33986621,87980.0,87953.0,0.63140897]
[1769529126685,0.65996039,87978.0,87953.0,0.63140897]
[1769529126929,0.65996039,87978.0,87910.0,0.21684]
[1769529126930,0.02737523,87979.0,87952.0,0.02386879]
[1769529127079,0.68490363,87971.0,87952.0,0.02386879]
[1769529127275,0.02494324,87969.0,87952.0,0.02386879]
[1769529127483,0.68490363,87968.0,87948.0,0.63140897]
[1769529127724,0.02737523,87965.0,87948.0,0.63140897]
[1769529127881,0.02737523,87965.0,87939.0,0.63140897]
[1769529127882,0.65996039,87961.0,87939.0,0.63140897]
[1769529128083,0.68490363,87960.0,87939.0,0.63140897]
[1769529128308,0.68490363,87960.0,87925.0,0.05686622]
[1769529128309,0.02737523,87951.0,87911.0,0.63140897]
[1769529128514,0.22740451,87949.0,87915.0,0.63140897]
[1769529128732,0.42839237,87942.0,87918.0,0.02386879]
[1769529128892,0.48525296,87935.0,87906.0,0.02386879]
[1769529129077,0.11684,87943.0,87910.0,0.02386879]
[1769529129078,0.02494324,87932.0,87910.0,0.02386879]
[1769529129277,0.02494324,87932.0,87911.0,0.65527776]
[1769529129491,0.02494324,87932.0,87913.0,0.63140897]
[1769529129729,0.02494324,87932.0,87913.0,0.65527776]
[1769529130046,0.02494324,87932.0,87911.0,0.00013989]
[1769529130047,0.02494324,87930.0,87912.0,0.63140897]
[1769529130204,0.02494324,87930.0,87913.0,0.02386879]
[1769529130410,0.02494324,87930.0,87914.0,0.63140897]
[1769529131312,0.02494324,87929.0,87914.0,0.63140897]
[1769529131718,0.02494324,87929.0,87911.0,0.00013989]
[1769529131923,0.02737523,87965.0,87891.0,0.63140897]
[1769529131924,0.00047659,87910.0,87891.0,0.63140897]
[1769529132128,0.00047659,87910.0,87893.0,0.63140897]
[1769529132323,0.15787429,87912.0,87893.0,0.63140897]
[1769529132542,0.18281753,87912.0,87893.0,0.63140897]
[1769529132938,0.15787429,87912.0,87893.0,0.63140897]
[1769529133160,0.02494324,87911.0,87893.0,0.63140897]
[1769529133571,0.15787429,87910.0,87893.0,0.63140897]
[1769529134665,0.02494324,87911.0,87893.0,0.65527776]
[1769529135276,0.15787429,87908.0,87891.0,0.00046636]
[1769529135472,0.18281753,87908.0,87891.0,0.00046636]
[1769529136422,0.18281753,87908.0,87891.0,0.02433515]
[1769529136979,0.18281753,87908.0,87891.0,0.65574412]
[1769529137423,0.15787429,87908.0,87891.0,0.63187533]
[1769529137579,0.15787429,87908.0,87892.0,0.02386879]
[1769529138473,0.15787429,87908.0,87891.0,0.63187533]
[1769529138474,0.15787429,87907.0,87891.0,0.00046636]
[1769529138598,0.07410813,87908.0,87891.0,0.00046636]
[1769529138599,0.18524952,87905.0,87891.0,0.00046636]
[1769529138803,0.15787429,87903.0,87885.0,0.65527776]
[1769529139035,0.15834036,87903.0,87885.0,0.02386879]
[1769529140368,0.21522129,87903.0,87885.0,0.02386879]
[1769529140577,0.15787429,87902.0,87885.0,0.02386879]
[1769529140755,0.0568821,87902.0,87885.0,0.02386879]
[1769529140949,0.15787429,87901.0,87885.0,0.02386879]
[1769529141322,0.05688193,87902.0,87882.0,0.0004]
[1769529141323,0.15751739,87900.0,87882.0,0.0004]
[1769529141523,0.00046607,87903.0,87882.0,0.0004]
[1769529141524,0.15751739,87896.0,87882.0,0.0004]
[1769529141773,0.00157517,87925.0,87896.0,0.00046636]
[1769529141968,0.02737523,87923.0,87901.0,0.03128082]
[1769529142169,0.00157517,87922.0,87902.0,0.03128082]
[1769529142486,0.00157517,87921.0,87902.0,0.03128082]
[1769529142643,0.02737523,87923.0,87902.0,0.03128082]
[1769529142844,0.05687265,87916.0,87902.0,0.03128082]
[1769529143141,0.05844782,87916.0,87902.0,0.03128082]
[1769529143370,0.05844777,87916.0,87902.0,0.03128082]
[1769529143849,0.00157517,87916.0,87902.0,0.03128082]
[1769529144457,0.00157517,87916.0,87896.0,0.67800754]
[1769529144655,0.00157517,87916.0,87897.0,0.02485484]
[1769529144883,0.00157517,87915.0,87897.0,0.02485484]
[1769529145443,0.00157517,87915.0,87899.0,0.02485484]
[1769529146808,0.22745314,87931.0,87896.0,0.00013955]
[1769529146809,0.08497759,87943.0,87915.0,0.00046636]
[1769529146974,0.05685882,87938.0,87919.0,0.02485484]
[1769529147175,0.05685854,87938.0,87920.0,0.02485484]
[1769529147373,0.099,87937.0,87920.0,0.02485484]
[1769529147576,0.0003605,87943.0,87922.0,0.02485484]
[1769529147781,0.0003605,87943.0,87926.0,0.02485484]
[1769529148018,0.0003605,87943.0,87928.0,0.02485484]
[1769529148224,0.05721575,87943.0,87928.0,0.02485484]
[1769529148660,0.0003605,87943.0,87928.0,0.02485484]
[1769529148919,0.05685851,87938.0,87928.0,0.02485484]
[1769529149350,0.05685851,87938.0,87922.0,0.64174573]
[1769529149549,0.099,87942.0,87923.0,0.02485484]
[1769529149749,0.02737523,87936.0,87900.0,0.34046778]
[1769529149949,0.099,87932.0,87904.0,0.02485484]
[1769529150147,0.099,87932.0,87907.0,0.64174573]
[1769529150362,0.099,87932.0,87900.0,0.45734778]
[1769529150363,0.099,87932.0,87909.0,0.64174573]
[1769529150564,0.099,87932.0,87913.0,0.64174573]
[1769529150846,0.02321562,87935.0,87916.0,0.02485484]
[1769529151052,0.02321562,87935.0,87917.0,0.02485484]
[1769529151247,0.099,87934.0,87917.0,0.02485484]
[1769529151453,0.12276256,87934.0,87917.0,0.02485484]
[1769529151922,0.17962378,87934.0,87917.0,0.02485484]
[1769529152125,0.12276256,87933.0,87917.0,0.02485484]
[1769529152337,0.12276256,87933.0,87916.0,0.64174573]
[1769529152338,0.05686212,87932.0,87916.0,0.64174573]
[1769529152536,0.099,87928.0,87910.0,0.34046778]
[1769529152743,0.05686295,87931.0,87911.0,0.64174573]
[1769529152942,0.02376256,87933.0,87900.0,0.45734778]
[1769529152943,0.02376256,87933.0,87912.0,0.02485484]
[1769529153145,0.02376256,87933.0,87900.0,0.45734778]
[1769529153146,0.099,87941.0,87914.0,0.02485484]
[1769529153284,0.056858,87939.0,87917.0,0.64174573]
[1769529153617,0.02376256,87936.0,87917.0,0.66660057]
[1769529154086,0.02376256,87936.0,87918.0,0.02485484]
[1769529154286,0.02376256,87936.0,87919.0,0.64174573]
[1769529154810,0.02376256,87936.0,87918.0,0.02485484]
[1769529154811,0.02376256,87936.0,87921.0,0.64174573]
[1769529155009,0.15585629,87942.0,87921.0,0.64174573]
[1769529155219,0.05685694,87940.0,87922.0,0.02485484]
[1769529155427,0.00050031,87943.0,87931.0,0.64174573]
[1769529156819,0.00050031,87943.0,87926.0,0.64174573]
[1769529157023,0.05685013,87951.0,87928.0,0.64174573]
[1769529157221,0.08422631,87950.0,87932.0,0.02485484]
[1769529157440,0.08422631,87950.0,87933.0,0.64174573]
[1769529157808,0.0568528,87947.0,87933.0,0.64174573]
[1769529158007,0.08061433,87948.0,87932.0,0.02485484]
[1769529158286,0.05685315,87946.0,87929.0,0.64174573]
[1769529158611,0.0806154,87947.0,87929.0,0.64174573]
[1769529158846,0.02376256,87947.0,87929.0,0.64174573]
[1769529160902,0.02376256,87946.0,87929.0,0.64174573]
[1769529162873,0.0003605,87964.0,87933.0,0.64174573]
[1769529162874,0.11684,87959.0,87933.0,0.64174573]
[1769529163080,0.02376256,87958.0,87940.0,0.34046778]
[1769529163332,0.02376256,87958.0,87938.0,0.02485484]
[1769529163333,0.02376256,87958.0,87941.0,0.64174573]
[1769529163531,0.02376256,87958.0,87930.0,0.34046778]
[1769529163532,0.099,87956.0,87936.0,0.64174573]
[1769529163756,0.02376256,87953.0,87950.0,0.0126]
[1769529163973,0.05685055,87950.0,87936.0,0.64174573]
[1769529164143,0.02376256,87951.0,87930.0,0.34046778]
[1769529164347,0.05685146,87949.0,87929.0,0.64174573]
[1769529164529,0.02376256,87945.0,87929.0,0.64174573]
[1769529164745,0.02376256,87944.0,87928.0,0.00013981]
[1769529165461,0.02376256,87942.0,87928.0,0.00013981]
[1769529165641,0.02376256,87940.0,87928.0,0.00013981]
[1769529165825,0.099,87935.0,87928.0,0.00013981]
[1769529166026,0.02376256,87934.0,87928.0,0.00013981]
[1769529167856,0.02376256,87933.0,87916.0,0.64174573]
[1769529168126,0.02376256,87933.0,87890.0,0.05688871]
[1769529168127,0.02376256,87926.0,87906.0,0.65810786]
[1769529168257,0.02376256,87925.0,87906.0,0.65857393]
[1769529168461,0.02376256,87925.0,87906.0,0.6422118]
[1769529168717,0.02376256,87925.0,87908.0,0.65810786]
[1769529169077,0.02376256,87925.0,87906.0,0.00046607]
[1769529169078,0.02376256,87932.0,87925.0,0.01]
[1769529169685,0.02376256,87932.0,87915.0,0.64174573]
[1769529170102,0.02376256,87932.0,87915.0,0.65361059]
[1769529170307,0.05685917,87937.0,87915.0,0.64174573]
[1769529170507,0.02376256,87935.0,87915.0,0.64174573]
[1769529171125,0.02737523,87936.0,87915.0,0.64174573]
[1769529171320,0.02376256,87933.0,87915.0,0.64174573]
[1769529171503,0.02376256,87932.0,87915.0,0.64174573]
[1769529177318,0.099,87931.0,87910.0,0.34046778]
[1769529177532,0.02737523,87936.0,87907.0,0.69582881]
[1769529177533,0.02581394,87928.0,87907.0,0.69582881]
[1769529177744,0.02581394,87926.0,87907.0,0.69582881]
[1769529179833,0.02484706,87940.0,87911.0,0.71944149]
[1769529180075,0.02484706,87934.0,87911.0,0.69582881]
[1769529180402,0.02484706,87934.0,87915.0,0.71944149]
[1769529180613,0.11688,87945.0,87920.0,0.34046778]
[1769529180845,0.11369901,87944.0,87932.0,0.69582881]
[1769529181051,0.02484706,87950.0,87932.0,0.71944149]
[1769529181301,0.08169888,87948.0,87932.0,0.71944149]
[1769529181489,0.17054278,87947.0,87932.0,0.69582881]
[1769529181745,0.11369036,87946.0,87932.0,0.69582881]
[1769529181928,0.05685488,87944.0,87932.0,0.69582881]
[1769529182108,0.08170001,87947.0,87932.0,0.69582881]
[1769529182305,0.11368472,87946.0,87932.0,0.69582881]
[1769529182515,0.08169958,87947.0,87932.0,0.69582881]
[1769529182749,0.11368532,87946.0,87932.0,0.69582881]
[1769529183094,0.02484706,87947.0,87932.0,0.69582881]
[1769529184664,0.02484706,87947.0,87911.0,0.05687555]
[1769529184665,0.02484706,87934.0,87909.0,0.69582881]
[1769529184888,0.02484706,87932.0,87909.0,0.69582881]
[1769529185106,0.02484706,87932.0,87910.0,0.01968848]
[1769529185332,0.02737523,87931.0,87902.0,0.01968848]
[1769529185547,0.02737523,87931.0,87890.0,0.34046778]
[1769529185548,0.02484706,87920.0,87903.0,0.69582881]
[1769529185791,0.63764655,87917.0,87897.0,0.69582881]
[1769529186004,0.0768,87935.0,87890.0,0.69582881]
[1769529186005,0.02484706,87914.0,87890.0,0.69582881]
[1769529186217,0.02484706,87910.0,87890.0,0.69582881]
[1769529186447,0.02484706,87909.0,87890.0,0.69582881]
[1769529186662,0.02484706,87907.0,87890.0,0.69582881]
[1769529186885,0.02484706,87906.0,87890.0,0.69582881]
[1769529190299,0.02484706,87906.0,87890.0,0.69606111]
[1769529190722,0.02531342,87914.0,87893.0,0.01519067]
[1769529190944,0.02531342,87914.0,87890.0,0.34070008]
[1769529190945,0.00046636,87914.0,87902.0,0.01519067]
[1769529191188,0.00046636,87914.0,87903.0,0.69582881]
[1769529192027,0.00046636,87914.0,87891.0,0.0002323]
[1769529192308,0.02484706,87906.0,87891.0,0.0002323]
[1769529192663,0.02484706,87906.0,87892.0,0.69582881]
[1769529192903,0.02531342,87914.0,87893.0,0.01519067]
[1769529193126,0.02531342,87914.0,87896.0,0.69582881]
[1769529193332,0.00046636,87914.0,87901.0,0.69582881]
[1769529193560,0.0113704,87916.0,87903.0,0.69582881]
[1769529193889,0.01141699,87916.0,87892.0,0.01519067]
[1769529194037,0.63764684,87913.0,87893.0,0.69582881]
[1769529194265,0.02484706,87910.0,87893.0,0.69582881]
[1769529194885,0.02484706,87910.0,87892.0,0.69582881]
[1769529196458,0.01141699,87916.0,87894.0,0.69582881]
[1769529196735,0.01141699,87916.0,87901.0,0.69582881]
[1769529197085,0.02484706,87915.0,87901.0,0.69582881]
[1769529198980,0.02484706,87915.0,87891.0,0.0002323]
[1769529199199,0.02484706,87913.0,87892.0,0.69582881]
[1769529199789,0.02484706,87912.0,87892.0,0.69582881]
[1769529199944,0.63764684,87912.0,87892.0,0.69582881]
[1769529200144,0.02484706,87911.0,87892.0,0.69582881]
[1769529200427,0.02484706,87911.0,87891.0,0.0002323]
[1769529200428,0.02737523,87911.0,87891.0,0.0002323]
[1769529200550,0.02484706,87901.0,87891.0,0.0002323]
[1769529200750,0.02484706,87900.0,87891.0,0.0002323]
[1769529200968,0.02484706,87898.0,87891.0,0.0002323]
[1769529201209,0.02484706,87896.0,87891.0,0.0002323]
[1769529201421,0.63741686,87893.0,87882.0,0.0004]
[1769529201618,0.02484706,87891.0,87882.0,0.0004]
[1769529202404,0.02484706,87891.0,87882.0,0.64432753]
[1769529202585,0.02484706,87891.0,87882.0,0.0004]
[1769529203331,0.22753785,87898.0,87882.0,0.0004]
[1769529203332,0.63741686,87904.0,87882.0,0.0004]
[1769529203639,0.02445059,87895.0,87882.0,0.0004]
[1769529203835,0.02445059,87894.0,87882.0,0.0004]
[1769529204040,0.08133743,87894.0,87882.0,0.0004]
[1769529204197,0.02445059,87894.0,87882.0,0.0004]
[1769529204407,0.05688487,87897.0,87883.0,0.65465351]
[1769529204835,0.05688587,87896.0,87883.0,0.65465351]
[1769529204993,0.02461624,87900.0,87883.0,0.65465351]
[1769529205708,0.08150077,87898.0,87883.0,0.65465351]
[1769529205905,0.05688476,87897.0,87883.0,0.65465351]
[1769529206144,0.0815021,87896.0,87883.0,0.65465351]
[1769529206337,0.08150189,87896.0,87882.0,0.0004]
[1769529206687,0.08150167,87896.0,87882.0,0.0004]
[1769529207098,0.1282504,87901.0,87882.0,0.0004]
[1769529207099,0.1282504,87901.0,87883.0,0.65465351]
[1769529207322,0.0113704,87901.0,87884.0,0.0244598]
[1769529207540,0.0113704,87901.0,87888.0,0.0244598]
[1769529207742,0.0113704,87901.0,87891.0,0.65465351]
[1769529208001,0.0113704,87901.0,87893.0,0.65465351]
[1769529209162,0.0113704,87901.0,87892.0,0.0244598]
[1769529209376,0.0113704,87901.0,87889.0,0.65465351]
[1769529209607,0.0113704,87901.0,87882.0,0.0004]
[1769529209608,0.05688424,87898.0,87882.0,0.0004]
[1769529209922,0.02461624,87894.0,87882.0,0.0004]
[1769529210111,0.02461624,87893.0,87882.0,0.0004]
[1769529211963,0.6620331,87920.0,87896.0,0.65465351]
[1769529212239,0.05687343,87915.0,87900.0,0.99523098]
[1769529212443,0.6620331,87920.0,87900.0,0.65465351]
[1769529212580,0.05687343,87915.0,87900.0,0.65465351]
[1769529212783,0.08148967,87915.0,87900.0,0.65465351]
[1769529212998,0.02461624,87915.0,87900.0,0.65465351]
[1769529213194,0.05687472,87913.0,87900.0,0.65465351]
[1769529213394,0.02461624,87915.0,87890.0,0.34057747]
[1769529213597,0.02461624,87915.0,87882.0,0.0004]
[1769529213598,0.64867356,87910.0,87883.0,0.1413398]
[1769529213800,0.02461624,87903.0,87883.0,0.1413398]
[1769529214023,0.02461624,87903.0,87883.0,0.79599331]
[1769529214438,0.51039322,87904.0,87883.0,0.77153351]
[1769529214651,0.51039322,87904.0,87886.0,0.0244598]
[1769529214963,0.51177602,87905.0,87886.0,0.67911331]
[1769529215196,0.51177602,87905.0,87887.0,0.0244598]
[1769529215316,0.02461624,87917.0,87891.0,0.65465351]
[1769529215517,0.02461624,87917.0,87883.0,0.11688]
[1769529215518,0.02461624,87930.0,87903.0,0.65465351]
[1769529215762,0.01137539,87921.0,87906.0,0.65465351]
[1769529215968,0.01137539,87921.0,87907.0,0.0244598]
[1769529216812,0.01137539,87921.0,87907.0,0.67911331]
[1769529217126,0.01137539,87921.0,87909.0,0.65465351]
[1769529217615,0.01137539,87921.0,87909.0,0.67911331]
[1769529218018,0.01137539,87921.0,87900.0,0.34057747]
[1769529218156,0.5490657,87942.0,87911.0,0.65465351]
[1769529218357,0.01137205,87935.0,87914.0,0.0244598]
[1769529218617,0.05686316,87931.0,87916.0,0.0244598]
[1769529218984,0.05686448,87929.0,87916.0,0.0244598]
[1769529219186,0.02737523,87931.0,87916.0,0.0244598]
[1769529219420,0.55182469,87931.0,87916.0,0.0244598]
[1769529219623,0.056868,87923.0,87909.0,0.0244598]
[1769529220254,0.52444946,87929.0,87909.0,0.0244598]
[1769529220430,0.05686665,87925.0,87909.0,0.0244598]
[1769529220643,0.05686629,87926.0,87909.0,0.0244598]
[1769529221255,0.05686629,87926.0,87909.0,0.67911331]
[1769529221670,0.05686669,87925.0,87909.0,0.67911331]
[1769529222006,0.05686833,87923.0,87909.0,0.67911331]
[1769529222170,0.5490657,87928.0,87909.0,0.67911331]
[1769529222490,0.05686839,87923.0,87909.0,0.0244598]
[1769529222696,0.52444946,87921.0,87902.0,0.0244598]
[1769529222834,0.52444946,87921.0,87902.0,0.65465351]
[1769529223032,0.52444946,87921.0,87903.0,0.0244598]
[1769529223245,0.59906835,87921.0,87903.0,0.67911331]
[1769529223440,0.02461624,87922.0,87900.0,0.00046636]
[1769529223666,0.02737523,87924.0,87882.0,0.0004]
[1769529223667,0.02461624,87905.0,87885.0,0.0244598]
[1769529223922,0.52398776,87904.0,87886.0,0.06795133]
[1769529224257,0.02508257,87905.0,87887.0,0.65465351]
[1769529224474,0.00046633,87905.0,87891.0,0.65465351]
[1769529224681,0.00046633,87905.0,87894.0,0.0244598]
[1769529224935,0.00046633,87905.0,87895.0,0.0244598]
[1769529225238,0.00046633,87905.0,87895.0,0.67911331]
[1769529225441,0.00046633,87905.0,87898.0,0.65465351]
[1769529225585,0.00046633,87905.0,87899.0,0.67911331]
[1769529226276,0.00046633,87905.0,87899.0,0.0244598]
[1769529226477,0.00046633,87905.0,87896.0,0.01167878]
[1769529227146,0.00046633,87905.0,87897.0,0.65465351]
[1769529227355,0.02461624,87924.0,87901.0,0.0244598]
[1769529227559,0.0113754,87918.0,87903.0,0.65465351]
[1769529227759,0.0113754,87918.0,87901.0,4.659e-05]
[1769529227760,0.0113754,87918.0,87904.0,0.0244598]
[1769529230007,0.0113732,87926.0,87914.0,0.0244598]
[1769529230205,0.0568667,87925.0,87914.0,0.0244598]
[1769529230407,0.0568667,87925.0,87915.0,0.01171412]
[1769529230608,0.0568667,87925.0,87915.0,0.01164362]
[1769529230777,0.0113732,87926.0,87915.0,0.01164362]
[1769529231204,0.0682397,87926.0,87915.0,0.01157475]
[1769529232096,0.0113732,87926.0,87915.0,0.01157475]
[1769529232281,0.06823923,87926.0,87915.0,0.01157475]
[1769529232489,0.05686689,87925.0,87915.0,0.01157475]
[1769529233379,0.06823925,87926.0,87915.0,0.01157475]
[1769529233380,0.05686731,87924.0,87915.0,0.01157475]
[1769529233687,0.05686776,87924.0,87915.0,0.01157475]
[1769529234129,0.0113732,87926.0,87915.0,0.01157475]
[1769529234343,0.06823954,87926.0,87915.0,0.01157475]
[1769529234818,0.06823954,87926.0,87916.0,0.06791599]
[1769529235033,0.05686666,87925.0,87916.0,0.06780451]
[1769529235248,0.05686768,87924.0,87916.0,0.06780451]
[1769529235395,0.05686848,87923.0,87916.0,0.06780451]
[1769529235601,0.05686673,87925.0,87916.0,0.06780451]
[1769529235805,0.0113732,87926.0,87917.0,0.00678045]
[1769529236008,0.0113732,87926.0,87909.0,0.69158239]
[1769529236395,0.0682396,87926.0,87909.0,0.69158239]
[1769529236995,0.0113732,87926.0,87909.0,0.69158239]
[1769529237413,0.0113732,87926.0,87909.0,0.66712259]
[1769529237595,0.06823949,87926.0,87910.0,0.02406911]
[1769529238452,0.05686697,87925.0,87910.0,0.02406911]
[1769529238643,0.06823952,87926.0,87910.0,0.02406911]
[1769529238817,0.0113732,87926.0,87911.0,0.66712259]
[1769529239021,0.0113732,87926.0,87911.0,0.6911917]
[1769529240512,0.02472611,87942.0,87914.0,0.66712259]
[1769529240752,0.1136439,87941.0,87923.0,0.02398973]
[1769529240961,0.1136439,87940.0,87927.0,0.02406911]
[1769529241121,0.1136439,87939.0,87928.0,0.02406911]
[1769529241324,0.1136439,87938.0,87928.0,0.02406911]
[1769529241534,0.1136439,87937.0,87928.0,0.02406911]
[1769529241776,0.06822717,87942.0,87928.0,0.02406911]
[1769529242002,0.11364983,87941.0,87928.0,0.02406911]
[1769529242236,0.11364983,87940.0,87928.0,0.02406911]
[1769529242438,0.06822717,87942.0,87928.0,0.02406911]
[1769529242561,0.06822717,87942.0,87921.0,0.02406911]
[1769529242562,0.11363209,87941.0,87921.0,0.02406911]
[1769529242760,0.21271067,87940.0,87921.0,0.6911917]
[1769529243004,0.05685849,87938.0,87921.0,0.6911917]
[1769529243162,0.09919527,87940.0,87921.0,0.6911917]
[1769529243375,0.05685939,87937.0,87921.0,0.6911917]
[1769529243576,0.05685975,87936.0,87921.0,0.6911917]
[1769529244315,0.09919527,87940.0,87921.0,0.6911917]
[1769529244459,0.11363524,87939.0,87921.0,0.6911917]
[1769529244674,0.05685901,87937.0,87922.0,0.6911917]
[1769529244920,0.0568592,87937.0,87922.0,0.6911917]
[1769529245120,0.05685903,87937.0,87922.0,0.6911917]
[1769529245348,0.15605274,87940.0,87922.0,0.6911917]
[1769529245521,0.17050798,87939.0,87922.0,0.6911917]
[1769529245751,0.05686194,87933.0,87902.0,0.11688]
[1769529245934,0.02472611,87927.0,87904.0,0.02406911]
[1769529246134,0.056866,87927.0,87905.0,0.66712259]
[1769529246292,0.05686961,87921.0,87905.0,0.66712259]
[1769529246482,0.30483171,87920.0,87904.0,0.02406911]
[1769529246682,0.30483171,87920.0,87904.0,0.6911917]
[1769529247206,0.02472611,87917.0,87898.0,0.66712259]
[1769529247587,0.02472611,87917.0,87899.0,0.6911917]
[1769529247834,0.22746949,87924.0,87892.0,0.11688]
[1769529247835,0.30483171,87926.0,87900.0,0.66712259]
[1769529248044,0.02472611,87925.0,87903.0,0.02406911]
[1769529248200,0.30483171,87924.0,87904.0,0.6911917]
[1769529248410,0.32955782,87924.0,87904.0,0.6911917]
[1769529248635,0.08159435,87923.0,87904.0,0.6911917]
[1769529248837,0.08159434,87923.0,87904.0,0.6911917]
[1769529249042,0.30483171,87922.0,87904.0,0.6911917]
[1769529249234,0.02472611,87923.0,87904.0,0.6911917]
[1769529249720,0.08159434,87923.0,87904.0,0.6911917]
[1769529250539,0.05686871,87922.0,87904.0,0.6911917]
[1769529250773,0.02472611,87923.0,87905.0,0.66712259]
[1769529252040,0.36170061,87922.0,87905.0,0.66712259]
[1769529253065,0.30483171,87922.0,87905.0,0.66712259]
[1769529253966,0.36170086,87922.0,87905.0,0.66712259]
[1769529254202,0.30483171,87922.0,87905.0,0.66712259]
[1769529254412,0.08159564,87921.0,87905.0,0.66712259]
[1769529254619,0.02472611,87921.0,87905.0,0.66712259]
[1769529255207,0.08159575,87921.0,87905.0,0.66712259]
[1769529255406,0.02472611,87921.0,87905.0,0.66712259]
[1769529257090,0.30483171,87927.0,87906.0,0.02406911]
[1769529257265,0.30483171,87925.0,87906.0,0.02406911]
[1769529257480,0.02472611,87924.0,87907.0,0.03646466]
[1769529258056,0.02472611,87924.0,87908.0,0.66712259]
[1769529258718,0.02472611,87924.0,87908.0,0.6911917]
[1769529258881,0.32955782,87924.0,87908.0,0.6911917]
[1769529259103,0.02472611,87923.0,87908.0,0.66712259]
[1769529259314,0.02472611,87923.0,87909.0,0.0429146]
[1769529259973,0.000229,87928.0,87909.0,0.71003719]
[1769529260277,0.11377452,87927.0,87913.0,0.66712259]
[1769529260580,0.000229,87928.0,87918.0,0.02406911]
[1769529260693,0.000229,87928.0,87918.0,0.6911917]
[1769529260911,0.000229,87928.0,87919.0,0.03646466]
[1769529261327,0.000229,87928.0,87913.0,0.66712259]
[1769529261527,0.11377788,87927.0,87913.0,0.66712259]
[1769529261711,0.000229,87928.0,87913.0,0.66712259]
[1769529262063,0.11377792,87927.0,87913.0,0.6911917]
[1769529262197,0.000229,87928.0,87913.0,0.6911917]
[1769529262401,0.11377843,87927.0,87914.0,0.66666867]
[1769529262602,0.000229,87928.0,87914.0,0.66666867]
[1769529262933,0.11377655,87927.0,87914.0,0.66666867]
[1769529263138,0.000229,87928.0,87914.0,0.66666867]
[1769529263335,0.1137791,87927.0,87900.0,0.34057747]
[1769529263540,0.22747112,87924.0,87903.0,0.66666867]
[1769529263740,0.02449813,87921.0,87903.0,0.66666867]
[1769529263903,0.02449813,87921.0,87881.0,0.0002214]
[1769529264106,0.11751021,87910.0,87885.0,0.69144857]
[1769529264344,0.11751021,87906.0,87885.0,0.69144857]
[1769529264544,0.02256208,87904.0,87885.0,0.69144857]
[1769529265325,0.02256208,87904.0,87885.0,0.6919149]
[1769529265901,0.02256208,87904.0,87885.0,0.667135]
[1769529266534,0.02256208,87903.0,87885.0,0.667135]
[1769529266867,0.11751021,87904.0,87885.0,0.667135]
[1769529267066,0.11751021,87909.0,87885.0,0.00046633]
[1769529267306,0.02256208,87892.0,87885.0,0.00046633]
[1769529267820,0.11751021,87892.0,87885.0,0.00046633]
[1769529268047,0.02256208,87891.0,87885.0,0.00046633]
[1769529268254,0.11704855,87888.0,87872.0,0.0004]